[Event "Titled Tuesday Blitz April 25 Early 2023"]
[White "Barwinska, Ewa"]
[Black "Medina Paz, Miguel"]
[WhiteFideId "21833761"]
[BlackFideId "7300379"]
[WhiteElo "1908"]
[BlackElo "2428"]
[Result "1-0"]
[Round "06"]
[TimeControl "180+2"]
[Date "2023.04.25"]
[WhiteClock "0:00:07"]
[BlackClock "0:00:58"]

1. e4 {[%clk 0:03:00]}  e6 {[%clk 0:01:36]} 2. d4 {[%clk 0:02:59]}  d5 {[%clk 0:01:36]} 3. Nc3 {[%clk 0:03:00]}  Bb4 {[%clk 0:01:36]} 4. e5 {[%clk 0:02:58]}  c5 {[%clk 0:01:36]} 5. a3 {[%clk 0:02:53]}  Bxc3+ {[%clk 0:01:37]} 6. bxc3 {[%clk 0:02:53]}  Ne7 {[%clk 0:01:37]} 7. Bd3 {[%clk 0:02:51]}  Nbc6 {[%clk 0:01:37]} 8. Nf3 {[%clk 0:02:43]}  Qa5 {[%clk 0:01:37]} 9. Bd2 {[%clk 0:02:41]}  c4 {[%clk 0:01:38]} 10. Be2 {[%clk 0:02:40]}  Bd7 {[%clk 0:01:38]} 11. Rb1 {[%clk 0:02:23]}  O-O-O {[%clk 0:01:37]} 12. Qc1 {[%clk 0:02:22]}  f6 {[%clk 0:01:37]} 13. Qb2 {[%clk 0:02:21]}  Qc7 {[%clk 0:01:35]} 14. exf6 {[%clk 0:02:14]}  gxf6 {[%clk 0:01:35]} 15. Bf4 {[%clk 0:02:14]}  Qb6 {[%clk 0:01:35]} 16. Qxb6 {[%clk 0:02:13]}  axb6 {[%clk 0:01:35]} 17. Rxb6 {[%clk 0:02:14]}  Ng6 {[%clk 0:01:35]} 18. Bg3 {[%clk 0:02:10]}  e5 {[%clk 0:01:36]} 19. dxe5 {[%clk 0:02:05]}  fxe5 {[%clk 0:01:35]} 20. Ng5 {[%clk 0:02:05]}  Rdf8 {[%clk 0:01:32]} 21. O-O {[%clk 0:02:02]}  h6 {[%clk 0:01:32]} 22. Nf3 {[%clk 0:02:01]}  e4 {[%clk 0:01:27]} 23. Nd4 {[%clk 0:01:58]}  Nxd4 {[%clk 0:01:27]} 24. cxd4 {[%clk 0:01:59]}  Bc6 {[%clk 0:01:28]} 25. Bg4+ {[%clk 0:01:58]}  Kd8 {[%clk 0:01:28]} 26. Rfb1 {[%clk 0:01:39]}  h5 {[%clk 0:01:28]} 27. Be2 {[%clk 0:01:32]}  h4 {[%clk 0:01:28]} 28. Bd6 {[%clk 0:01:31]}  Rf6 {[%clk 0:01:27]} 29. Bc5 {[%clk 0:01:13]}  Nf4 {[%clk 0:01:25]} 30. Bg4 {[%clk 0:01:02]}  Rg8 {[%clk 0:01:21]} 31. h3 {[%clk 0:01:02]}  Rxg4 {[%clk 0:01:17]} 32. hxg4 {[%clk 0:01:02]}  Rg6 {[%clk 0:01:17]} 33. f3 {[%clk 0:00:53]}  Kd7 {[%clk 0:01:14]} 34. a4 {[%clk 0:00:43]}  Ne2+ {[%clk 0:01:06]} 35. Kf2 {[%clk 0:00:40]}  Nc3 {[%clk 0:01:06]} 36. Rxb7+ {[%clk 0:00:38]}  Bxb7 {[%clk 0:01:06]} 37. Rxb7+ {[%clk 0:00:38]}  Kc8 {[%clk 0:01:07]} 38. Rh7 {[%clk 0:00:32]}  Re6 {[%clk 0:01:06]} 39. Rh8+ {[%clk 0:00:27]}  Kb7 {[%clk 0:01:06]} 40. Rh7+ {[%clk 0:00:27]}  Kc8 {[%clk 0:01:06]} 41. Rh8+ {[%clk 0:00:27]}  Kb7 {[%clk 0:01:06]} 42. Rh7+ {[%clk 0:00:17]}  Ka8 {[%clk 0:01:06]} 43. Re7 {[%clk 0:00:08]}  e3+ {[%clk 0:01:06]} 44. Ke1 {[%clk 0:00:08]}  h3 {[%clk 0:01:03]} 45. Rxe6 {[%clk 0:00:07]}  hxg2 {[%clk 0:01:03]} 46. Re8+ {[%clk 0:00:07]}  Kb7 {[%clk 0:01:02]} 47. Re7+ {[%clk 0:00:08]}  Ka6 {[%clk 0:00:58]} 48. Ra7# {[%clk 0:00:07]} 1-0


[Site "https://www.chess.com"]

[Event "Titled Tuesday Blitz April 25 Early 2023"]
[White "Dwilewicz, Katarzyna"]
[Black "Singh, Arvinder Preet"]
[WhiteFideId "1148486"]
[BlackFideId "5013240"]
[WhiteElo "2065"]
[BlackElo "2124"]
[Result "0-1"]
[Round "06"]
[TimeControl "180+2"]
[Date "2023.04.25"]
[WhiteClock "0:00:05"]
[BlackClock "0:00:22"]

1. e4 {[%clk 0:02:55]}  c5 {[%clk 0:02:59]} 2. Nf3 {[%clk 0:02:55]}  d6 {[%clk 0:02:59]} 3. Bb5+ {[%clk 0:02:52]}  Nd7 {[%clk 0:02:59]} 4. O-O {[%clk 0:02:51]}  a6 {[%clk 0:02:58]} 5. Bxd7+ {[%clk 0:02:51]}  Bxd7 {[%clk 0:02:57]} 6. d4 {[%clk 0:02:51]}  e6 {[%clk 0:02:57]} 7. Nc3 {[%clk 0:02:46]}  Ne7 {[%clk 0:02:57]} 8. Re1 {[%clk 0:02:40]}  Ng6 {[%clk 0:02:57]} 9. Bg5 {[%clk 0:02:39]}  Be7 {[%clk 0:02:57]} 10. Bxe7 {[%clk 0:02:39]}  Qxe7 {[%clk 0:02:57]} 11. dxc5 {[%clk 0:02:37]}  dxc5 {[%clk 0:02:57]} 12. Nd5 {[%clk 0:02:26]}  Qd8 {[%clk 0:02:57]} 13. Ne3 {[%clk 0:02:16]}  O-O {[%clk 0:02:57]} 14. Nc4 {[%clk 0:02:16]}  Bc6 {[%clk 0:02:43]} 15. Qe2 {[%clk 0:02:11]}  b5 {[%clk 0:02:40]} 16. Rad1 {[%clk 0:02:10]}  Qc7 {[%clk 0:02:37]} 17. Ncd2 {[%clk 0:02:00]}  c4 {[%clk 0:02:29]} 18. Nf1 {[%clk 0:01:55]}  Rfd8 {[%clk 0:02:22]} 19. Qe3 {[%clk 0:01:53]}  Qa5 {[%clk 0:02:15]} 20. a3 {[%clk 0:01:50]}  Rac8 {[%clk 0:02:04]} 21. h4 {[%clk 0:01:50]}  c3 {[%clk 0:02:00]} 22. h5 {[%clk 0:01:22]}  Ne7 {[%clk 0:01:47]} 23. Qc5 {[%clk 0:00:45]}  Qc7 {[%clk 0:01:15]} 24. Qxc3 {[%clk 0:00:43]}  Rxd1 {[%clk 0:01:14]} 25. Rxd1 {[%clk 0:00:42]}  h6 {[%clk 0:01:14]} 26. Ng3 {[%clk 0:00:31]}  Qb7 {[%clk 0:01:10]} 27. Qe3 {[%clk 0:00:27]}  Be8 {[%clk 0:01:08]} 28. c3 {[%clk 0:00:27]}  a5 {[%clk 0:01:06]} 29. Rd4 {[%clk 0:00:21]}  Nc6 {[%clk 0:01:04]} 30. Rd6 {[%clk 0:00:21]}  b4 {[%clk 0:01:02]} 31. axb4 {[%clk 0:00:21]}  axb4 {[%clk 0:01:02]} 32. Nd4 {[%clk 0:00:20]}  Ne5 {[%clk 0:01:00]} 33. Ngf5 {[%clk 0:00:07]}  exf5 {[%clk 0:00:48]} 34. Nxf5 {[%clk 0:00:07]}  Ng4 {[%clk 0:00:30]} 35. Qg3 {[%clk 0:00:07]}  Qxe4 {[%clk 0:00:22]} 36. Nd4 {[%clk 0:00:05]}  Qe1# {[%clk 0:00:22]} 0-1


[Site "https://www.chess.com"]

[Event "Titled Tuesday Blitz April 25 Early 2023"]
[White "Clawitter, Craig"]
[Black "Silvestre, Christian"]
[WhiteFideId "2023105"]
[BlackFideId "30956269"]
[WhiteElo "2225"]
[BlackElo "2349"]
[Result "0-1"]
[Round "06"]
[TimeControl "180+2"]
[Date "2023.04.25"]
[WhiteClock "0:00:01"]
[BlackClock "0:01:36"]

1. e4 {[%clk 0:01:45]}  c6 {[%clk 0:02:47]} 2. d4 {[%clk 0:01:45]}  d5 {[%clk 0:02:47]} 3. e5 {[%clk 0:01:45]}  a6 {[%clk 0:02:47]} 4. c4 {[%clk 0:01:43]}  Bf5 {[%clk 0:02:45]} 5. Nc3 {[%clk 0:01:42]}  e6 {[%clk 0:02:45]} 6. h4 {[%clk 0:01:35]}  h6 {[%clk 0:02:44]} 7. Nge2 {[%clk 0:01:20]}  b5 {[%clk 0:02:43]} 8. cxd5 {[%clk 0:01:11]}  cxd5 {[%clk 0:02:44]} 9. Ng3 {[%clk 0:01:11]}  Bh7 {[%clk 0:02:44]} 10. Bd3 {[%clk 0:01:08]}  Bxd3 {[%clk 0:02:43]} 11. Qxd3 {[%clk 0:01:09]}  Nc6 {[%clk 0:02:44]} 12. Be3 {[%clk 0:01:06]}  Rc8 {[%clk 0:02:42]} 13. h5 {[%clk 0:00:54]}  Na5 {[%clk 0:02:35]} 14. b3 {[%clk 0:00:50]}  Bb4 {[%clk 0:02:30]} 15. Bd2 {[%clk 0:00:49]}  Ne7 {[%clk 0:02:29]} 16. O-O {[%clk 0:00:48]}  O-O {[%clk 0:02:20]} 17. Rac1 {[%clk 0:00:38]}  Ba3 {[%clk 0:02:17]} 18. Rc2 {[%clk 0:00:35]}  Nac6 {[%clk 0:02:17]} 19. Nce2 {[%clk 0:00:23]}  Bb4 {[%clk 0:02:14]} 20. Rfc1 {[%clk 0:00:19]}  Ba3 {[%clk 0:02:13]} 21. Rd1 {[%clk 0:00:14]}  Qb6 {[%clk 0:02:13]} 22. Kh2 {[%clk 0:00:13]}  Bb4 {[%clk 0:02:12]} 23. f4 {[%clk 0:00:09]}  Bxd2 {[%clk 0:02:09]} 24. Qxd2 {[%clk 0:00:07]}  Rc7 {[%clk 0:01:49]} 25. Rdc1 {[%clk 0:00:07]}  Rfc8 {[%clk 0:01:48]} 26. f5 {[%clk 0:00:05]}  exf5 {[%clk 0:01:46]} 27. Qf4 {[%clk 0:00:04]}  Nd8 {[%clk 0:01:41]} 28. Nxf5 {[%clk 0:00:02]}  Nxf5 {[%clk 0:01:37]} 29. Qxf5 {[%clk 0:00:02]}  Ne6 {[%clk 0:01:36]} 30. Rxc7 {[%clk 0:00:01]}  Rxc7 {[%clk 0:01:36]} 0-1


[Site "https://www.chess.com"]

[Event "Titled Tuesday Blitz April 25 Early 2023"]
[White "Della Corte, Alessandro"]
[Black "Ciuffoletti, Paolo"]
[WhiteFideId "813540"]
[BlackFideId "807630"]
[WhiteElo "2205"]
[BlackElo "2143"]
[Result "1/2-1/2"]
[Round "06"]
[TimeControl "180+2"]
[Date "2023.04.25"]
[WhiteClock "0:02:10"]
[BlackClock "0:00:10"]

1. e4 {[%clk 0:02:59]}  c5 {[%clk 0:02:59]} 2. Nf3 {[%clk 0:02:59]}  Nc6 {[%clk 0:02:59]} 3. Nc3 {[%clk 0:02:58]}  Nf6 {[%clk 0:02:58]} 4. d3 {[%clk 0:02:55]}  g6 {[%clk 0:02:53]} 5. g3 {[%clk 0:02:54]}  Bg7 {[%clk 0:02:53]} 6. Bg2 {[%clk 0:02:55]}  O-O {[%clk 0:02:53]} 7. O-O {[%clk 0:02:56]}  d5 {[%clk 0:02:45]} 8. exd5 {[%clk 0:02:53]}  Nxd5 {[%clk 0:02:44]} 9. Nxd5 {[%clk 0:02:53]}  Qxd5 {[%clk 0:02:43]} 10. Re1 {[%clk 0:02:54]}  Qd8 {[%clk 0:02:26]} 11. Bf4 {[%clk 0:02:46]}  Bxb2 {[%clk 0:02:09]} 12. Ne5 {[%clk 0:02:45]}  Bd7 {[%clk 0:01:14]} 13. Nxc6 {[%clk 0:02:39]}  Bxc6 {[%clk 0:01:11]} 14. Bxc6 {[%clk 0:02:39]}  bxc6 {[%clk 0:01:11]} 15. Be5 {[%clk 0:02:35]}  Bxa1 {[%clk 0:01:02]} 16. Bxa1 {[%clk 0:02:32]}  f6 {[%clk 0:01:01]} 17. Qe2 {[%clk 0:02:31]}  e5 {[%clk 0:01:00]} 18. f4 {[%clk 0:02:26]}  Qd5 {[%clk 0:00:54]} 19. fxe5 {[%clk 0:02:25]}  fxe5 {[%clk 0:00:53]} 20. Qxe5 {[%clk 0:02:23]}  Qxe5 {[%clk 0:00:46]} 21. Rxe5 {[%clk 0:02:24]}  Rae8 {[%clk 0:00:45]} 22. Rxe8 {[%clk 0:02:20]}  Rxe8 {[%clk 0:00:45]} 23. Kf2 {[%clk 0:02:21]}  Kf7 {[%clk 0:00:45]} 24. c4 {[%clk 0:02:19]}  Ke6 {[%clk 0:00:44]} 25. Bb2 {[%clk 0:02:18]}  Rb8 {[%clk 0:00:42]} 26. Ba3 {[%clk 0:02:18]}  Ke5 {[%clk 0:00:40]} 27. Bxc5 {[%clk 0:02:17]}  Rb2+ {[%clk 0:00:39]} 28. Ke3 {[%clk 0:02:15]}  Rxa2 {[%clk 0:00:39]} 29. h4 {[%clk 0:02:13]}  a5 {[%clk 0:00:38]} 30. d4+ {[%clk 0:02:11]}  Ke6 {[%clk 0:00:38]} 31. Ke4 {[%clk 0:02:11]}  a4 {[%clk 0:00:37]} 32. d5+ {[%clk 0:02:11]}  cxd5+ {[%clk 0:00:37]} 33. cxd5+ {[%clk 0:02:12]}  Kd7 {[%clk 0:00:37]} 34. Ke5 {[%clk 0:02:11]}  a3 {[%clk 0:00:34]} 35. Kf6 {[%clk 0:02:11]}  Ra1 {[%clk 0:00:24]} 36. Kg7 {[%clk 0:02:10]}  a2 {[%clk 0:00:23]} 37. Bd4 {[%clk 0:02:10]}  Rd1 {[%clk 0:00:22]} 38. Bf6 {[%clk 0:02:10]}  a1=Q {[%clk 0:00:20]} 39. Bxa1 {[%clk 0:02:09]}  Rxa1 {[%clk 0:00:20]} 40. Kxh7 {[%clk 0:02:10]}  Rg1 {[%clk 0:00:18]} 41. Kxg6 {[%clk 0:02:10]}  Rxg3+ {[%clk 0:00:18]} 42. Kf6 {[%clk 0:02:11]}  Kd6 {[%clk 0:00:16]} 43. h5 {[%clk 0:02:11]}  Kxd5 {[%clk 0:00:14]} 44. h6 {[%clk 0:02:12]}  Rh3 {[%clk 0:00:14]} 45. Kg7 {[%clk 0:02:12]}  Ke6 {[%clk 0:00:14]} 46. h7 {[%clk 0:02:12]}  Rg3+ {[%clk 0:00:13]} 47. Kf8 {[%clk 0:02:10]}  Rf3+ {[%clk 0:00:12]} 48. Kg7 {[%clk 0:02:10]}  Rg3+ {[%clk 0:00:12]} 49. Kf8 {[%clk 0:02:11]}  Rh3 {[%clk 0:00:13]} 50. Kg7 {[%clk 0:02:11]}  Ke7 {[%clk 0:00:10]} 51. h8=Q {[%clk 0:02:10]}  Rxh8 {[%clk 0:00:10]} 52. Kxh8 {[%clk 0:02:10]} 1/2-1/2


[Site "https://www.chess.com"]

[Event "Titled Tuesday Blitz April 25 Early 2023"]
[White "Todorovic, Bojan"]
[Black "Putri, Regita Desyari"]
[WhiteFideId "917087"]
[BlackFideId "7109083"]
[WhiteElo "2266"]
[BlackElo "1930"]
[Result "0-1"]
[Round "06"]
[TimeControl "180+2"]
[Date "2023.04.25"]
[WhiteClock "0:00:01"]
[BlackClock "0:00:02"]

1. Nf3 {[%clk 0:02:59]}  d5 {[%clk 0:02:58]} 2. c4 {[%clk 0:02:58]}  e6 {[%clk 0:02:57]} 3. g3 {[%clk 0:02:57]}  Nf6 {[%clk 0:02:56]} 4. Bg2 {[%clk 0:02:56]}  c5 {[%clk 0:02:56]} 5. O-O {[%clk 0:02:56]}  Be7 {[%clk 0:02:56]} 6. d4 {[%clk 0:02:43]}  O-O {[%clk 0:02:52]} 7. cxd5 {[%clk 0:02:36]}  Nxd5 {[%clk 0:02:52]} 8. Nc3 {[%clk 0:02:29]}  b6 {[%clk 0:02:42]} 9. Nxd5 {[%clk 0:02:24]}  exd5 {[%clk 0:02:43]} 10. Ne5 {[%clk 0:02:11]}  Be6 {[%clk 0:02:41]} 11. Be3 {[%clk 0:01:57]}  c4 {[%clk 0:02:35]} 12. b3 {[%clk 0:01:55]}  cxb3 {[%clk 0:02:22]} 13. axb3 {[%clk 0:01:52]}  f6 {[%clk 0:02:20]} 14. Nd3 {[%clk 0:01:52]}  Nc6 {[%clk 0:02:19]} 15. Qd2 {[%clk 0:01:27]}  Na5 {[%clk 0:02:10]} 16. Rfb1 {[%clk 0:01:19]}  Bf7 {[%clk 0:02:01]} 17. Nb4 {[%clk 0:01:10]}  Rc8 {[%clk 0:01:55]} 18. Bh3 {[%clk 0:00:59]}  Ra8 {[%clk 0:01:40]} 19. Rxa5 {[%clk 0:00:53]}  Bxb4 {[%clk 0:01:39]} 20. Qxb4 {[%clk 0:00:41]}  bxa5 {[%clk 0:01:39]} 21. Qc5 {[%clk 0:00:34]}  Qb6 {[%clk 0:01:38]} 22. Bf4 {[%clk 0:00:30]}  Rfe8 {[%clk 0:01:23]} 23. e3 {[%clk 0:00:26]}  Bg6 {[%clk 0:00:49]} 24. Qxd5+ {[%clk 0:00:25]}  Kh8 {[%clk 0:00:47]} 25. Rc1 {[%clk 0:00:25]}  Be4 {[%clk 0:00:37]} 26. Qc5 {[%clk 0:00:23]}  Qxb3 {[%clk 0:00:35]} 27. Bd7 {[%clk 0:00:20]}  Red8 {[%clk 0:00:33]} 28. Qe7 {[%clk 0:00:15]}  Qb7 {[%clk 0:00:18]} 29. Bc7 {[%clk 0:00:15]}  Rg8 {[%clk 0:00:15]} 30. Be6 {[%clk 0:00:16]}  Bh1 {[%clk 0:00:14]} 31. d5 {[%clk 0:00:14]}  Bxd5 {[%clk 0:00:13]} 32. Bxg8 {[%clk 0:00:14]}  Rxg8 {[%clk 0:00:12]} 33. e4 {[%clk 0:00:07]}  Bxe4 {[%clk 0:00:12]} 34. Re1 {[%clk 0:00:06]}  Bh1 {[%clk 0:00:11]} 35. Kf1 {[%clk 0:00:06]}  Bg2+ {[%clk 0:00:10]} 36. Ke2 {[%clk 0:00:05]}  Qb5+ {[%clk 0:00:08]} 37. Kd2 {[%clk 0:00:04]}  Qd5+ {[%clk 0:00:06]} 38. Kc1 {[%clk 0:00:03]}  Qc4+ {[%clk 0:00:06]} 39. Kd2 {[%clk 0:00:03]}  Bf3 {[%clk 0:00:04]} 40. Re3 {[%clk 0:00:01]}  Qd4+ {[%clk 0:00:03]} 41. Kc2 {[%clk 0:00:01]}  Qc4+ {[%clk 0:00:03]} 42. Kd2 {[%clk 0:00:01]}  Qa2+ {[%clk 0:00:03]} 43. Kc3 {[%clk 0:00:01]}  Bc6 {[%clk 0:00:01]} 44. Kd4 {[%clk 0:00:01]}  Qa1+ {[%clk 0:00:01]} 45. Kc5 {[%clk 0:00:02]}  Qc1+ {[%clk 0:00:01]} 46. Kd6 {[%clk 0:00:02]}  Ba4 {[%clk 0:00:02]} 47. Ke6 {[%clk 0:00:02]}  Qc4+ {[%clk 0:00:02]} 48. Kf5 {[%clk 0:00:01]}  Bc2+ {[%clk 0:00:02]} 0-1


[Site "https://www.chess.com"]

[Event "Titled Tuesday Blitz April 25 Early 2023"]
[White "Zaichenko, Daria"]
[Black "Tarnowska, Aleksandra"]
[WhiteFideId "4197453"]
[BlackFideId "1180967"]
[WhiteElo "2039"]
[BlackElo "1776"]
[Result "1/2-1/2"]
[Round "06"]
[TimeControl "180+2"]
[Date "2023.04.25"]
[WhiteClock "0:00:10"]
[BlackClock "0:00:03"]

1. e4 {[%clk 0:02:57]}  c5 {[%clk 0:03:00]} 2. Nf3 {[%clk 0:02:56]}  e6 {[%clk 0:03:01]} 3. d4 {[%clk 0:02:57]}  cxd4 {[%clk 0:03:02]} 4. Nxd4 {[%clk 0:02:56]}  a6 {[%clk 0:03:03]} 5. Nc3 {[%clk 0:02:55]}  Qc7 {[%clk 0:03:03]} 6. Bd3 {[%clk 0:02:50]}  Nc6 {[%clk 0:03:03]} 7. Nb3 {[%clk 0:02:50]}  Nf6 {[%clk 0:03:00]} 8. O-O {[%clk 0:02:49]}  b5 {[%clk 0:02:57]} 9. Be3 {[%clk 0:02:46]}  Ne5 {[%clk 0:02:49]} 10. f4 {[%clk 0:02:29]}  Nxd3 {[%clk 0:02:33]} 11. cxd3 {[%clk 0:02:27]}  d6 {[%clk 0:02:20]} 12. Rc1 {[%clk 0:02:24]}  Qd7 {[%clk 0:02:15]} 13. e5 {[%clk 0:02:19]}  dxe5 {[%clk 0:02:14]} 14. fxe5 {[%clk 0:02:19]}  Nd5 {[%clk 0:02:10]} 15. Nxd5 {[%clk 0:02:19]}  Qxd5 {[%clk 0:02:11]} 16. d4 {[%clk 0:02:16]}  Bb7 {[%clk 0:02:10]} 17. Qg4 {[%clk 0:02:10]}  h5 {[%clk 0:02:08]} 18. Qe2 {[%clk 0:02:03]}  h4 {[%clk 0:02:05]} 19. Qf2 {[%clk 0:02:04]}  Qd7 {[%clk 0:01:49]} 20. Nc5 {[%clk 0:02:02]}  Bxc5 {[%clk 0:01:49]} 21. Rxc5 {[%clk 0:02:00]}  Rc8 {[%clk 0:01:43]} 22. Rfc1 {[%clk 0:01:41]}  Rxc5 {[%clk 0:01:42]} 23. Rxc5 {[%clk 0:01:41]}  h3 {[%clk 0:01:39]} 24. g3 {[%clk 0:01:36]}  O-O {[%clk 0:01:25]} 25. b4 {[%clk 0:01:29]}  Ba8 {[%clk 0:01:14]} 26. Kf1 {[%clk 0:01:16]}  Bg2+ {[%clk 0:00:57]} 27. Ke2 {[%clk 0:01:14]}  Rc8 {[%clk 0:00:57]} 28. Kd1 {[%clk 0:00:37]}  Rxc5 {[%clk 0:00:52]} 29. bxc5 {[%clk 0:00:38]}  Qd5 {[%clk 0:00:53]} 30. Qd2 {[%clk 0:00:38]}  Qc4 {[%clk 0:00:38]} 31. Qc2 {[%clk 0:00:26]}  Qf1+ {[%clk 0:00:28]} 32. Kd2 {[%clk 0:00:27]}  Bf3 {[%clk 0:00:23]} 33. Kc3 {[%clk 0:00:17]}  Qa1+ {[%clk 0:00:18]} 34. Kd2 {[%clk 0:00:16]}  Qf1 {[%clk 0:00:15]} 35. Kc3 {[%clk 0:00:16]}  Qc4+ {[%clk 0:00:12]} 36. Kb2 {[%clk 0:00:13]}  Qb4+ {[%clk 0:00:12]} 37. Qb3 {[%clk 0:00:12]}  Qe1 {[%clk 0:00:10]} 38. Qc3 {[%clk 0:00:09]}  Qe2+ {[%clk 0:00:09]} 39. Qd2 {[%clk 0:00:09]}  Qc4 {[%clk 0:00:08]} 40. Qc2 {[%clk 0:00:09]}  Qb4+ {[%clk 0:00:08]} 41. Qb3 {[%clk 0:00:09]}  Qe1 {[%clk 0:00:08]} 42. Qc3 {[%clk 0:00:09]}  Qe2+ {[%clk 0:00:07]} 43. Qd2 {[%clk 0:00:10]}  Qc4 {[%clk 0:00:04]} 44. Qc3 {[%clk 0:00:10]}  Qe2+ {[%clk 0:00:03]} 1/2-1/2


[Site "https://www.chess.com"]

[Event "Titled Tuesday Blitz April 25 Early 2023"]
[White "GregLeBarbare"]
[Black "Mihajlovskij"]
[WhiteElo "2162"]
[BlackElo "2305"]
[Result "0-1"]
[Round "06"]
[TimeControl "180+2"]
[Date "2023.04.25"]
[WhiteClock "0:00:05"]
[BlackClock "0:02:05"]

1. d4 {[%clk 0:02:56]}  Nf6 {[%clk 0:02:57]} 2. Bf4 {[%clk 0:02:53]}  g6 {[%clk 0:02:57]} 3. Nf3 {[%clk 0:02:52]}  Bg7 {[%clk 0:02:57]} 4. c3 {[%clk 0:02:53]}  d6 {[%clk 0:02:56]} 5. Nbd2 {[%clk 0:02:53]}  O-O {[%clk 0:02:55]} 6. h3 {[%clk 0:02:52]}  c5 {[%clk 0:02:56]} 7. dxc5 {[%clk 0:02:48]}  dxc5 {[%clk 0:02:56]} 8. e4 {[%clk 0:02:49]}  Nc6 {[%clk 0:02:55]} 9. Bb5 {[%clk 0:02:44]}  Qb6 {[%clk 0:02:54]} 10. a4 {[%clk 0:02:40]}  a6 {[%clk 0:02:53]} 11. Nc4 {[%clk 0:02:39]}  Qd8 {[%clk 0:02:49]} 12. Bxc6 {[%clk 0:02:38]}  bxc6 {[%clk 0:02:48]} 13. Qe2 {[%clk 0:01:53]}  Be6 {[%clk 0:02:46]} 14. O-O {[%clk 0:01:48]}  Nd7 {[%clk 0:02:39]} 15. Rfd1 {[%clk 0:01:45]}  Qe8 {[%clk 0:02:39]} 16. Rd2 {[%clk 0:00:55]}  h6 {[%clk 0:02:38]} 17. Rad1 {[%clk 0:00:55]}  Ra7 {[%clk 0:02:37]} 18. Na5 {[%clk 0:00:48]}  Qc8 {[%clk 0:02:35]} 19. e5 {[%clk 0:00:40]}  g5 {[%clk 0:02:32]} 20. Bg3 {[%clk 0:00:37]}  Rd8 {[%clk 0:02:26]} 21. Qe4 {[%clk 0:00:36]}  Bd5 {[%clk 0:02:21]} 22. Rxd5 {[%clk 0:00:24]}  cxd5 {[%clk 0:02:22]} 23. Rxd5 {[%clk 0:00:24]}  Nf8 {[%clk 0:02:20]} 24. Rxd8 {[%clk 0:00:24]}  Qxd8 {[%clk 0:02:19]} 25. Nc6 {[%clk 0:00:24]}  Qd1+ {[%clk 0:02:18]} 26. Kh2 {[%clk 0:00:25]}  Rd7 {[%clk 0:02:14]} 27. h4 {[%clk 0:00:18]}  Ne6 {[%clk 0:02:10]} 28. hxg5 {[%clk 0:00:17]}  hxg5 {[%clk 0:02:11]} 29. Qf5 {[%clk 0:00:13]}  Qd5 {[%clk 0:02:07]} 30. Nxg5 {[%clk 0:00:05]}  Nxg5 {[%clk 0:02:05]} 0-1


[Site "https://www.chess.com"]

[Event "Titled Tuesday Blitz April 25 Early 2023"]
[White "Maluco_do_Natal_00"]
[Black "Tsyhanchuk, Stanislav"]
[BlackFideId "13505130"]
[WhiteElo "2013"]
[BlackElo "2173"]
[Result "0-1"]
[Round "06"]
[TimeControl "180+2"]
[Date "2023.04.25"]
[WhiteClock "0:00:02"]
[BlackClock "0:00:03"]

1. e4 {[%clk 0:03:00]}  c5 {[%clk 0:02:58]} 2. Nf3 {[%clk 0:03:00]}  d6 {[%clk 0:02:58]} 3. d4 {[%clk 0:03:01]}  cxd4 {[%clk 0:02:58]} 4. Nxd4 {[%clk 0:03:02]}  Nf6 {[%clk 0:02:58]} 5. Nc3 {[%clk 0:03:02]}  a6 {[%clk 0:02:59]} 6. Be3 {[%clk 0:03:02]}  e5 {[%clk 0:02:58]} 7. Nb3 {[%clk 0:03:02]}  Be6 {[%clk 0:02:59]} 8. Qd2 {[%clk 0:03:01]}  Be7 {[%clk 0:02:54]} 9. f3 {[%clk 0:03:02]}  Nbd7 {[%clk 0:02:52]} 10. O-O-O {[%clk 0:03:01]}  b5 {[%clk 0:02:52]} 11. g4 {[%clk 0:03:01]}  Nb6 {[%clk 0:02:45]} 12. Kb1 {[%clk 0:02:47]}  Rc8 {[%clk 0:02:37]} 13. a3 {[%clk 0:02:27]}  Nfd7 {[%clk 0:02:34]} 14. Na5 {[%clk 0:02:22]}  Qc7 {[%clk 0:02:30]} 15. h4 {[%clk 0:02:04]}  Nc4 {[%clk 0:01:24]} 16. Nxc4 {[%clk 0:02:01]}  bxc4 {[%clk 0:01:23]} 17. Nd5 {[%clk 0:01:38]}  Bxd5 {[%clk 0:01:23]} 18. exd5 {[%clk 0:01:23]}  c3 {[%clk 0:01:18]} 19. Qxc3 {[%clk 0:01:19]}  Qxc3 {[%clk 0:01:19]} 20. bxc3 {[%clk 0:01:19]}  Rxc3 {[%clk 0:01:20]} 21. Rd3 {[%clk 0:01:20]}  Rxd3 {[%clk 0:01:01]} 22. Bxd3 {[%clk 0:01:19]}  a5 {[%clk 0:01:02]} 23. Bb5 {[%clk 0:01:10]}  Kd8 {[%clk 0:01:00]} 24. g5 {[%clk 0:01:03]}  Kc7 {[%clk 0:00:58]} 25. Bd2 {[%clk 0:00:47]}  Ra8 {[%clk 0:00:28]} 26. a4 {[%clk 0:00:40]}  Nc5 {[%clk 0:00:26]} 27. f4 {[%clk 0:00:28]}  f6 {[%clk 0:00:20]} 28. Re1 {[%clk 0:00:21]}  e4 {[%clk 0:00:14]} 29. Be3 {[%clk 0:00:17]}  f5 {[%clk 0:00:13]} 30. Bd4 {[%clk 0:00:17]}  g6 {[%clk 0:00:13]} 31. Rh1 {[%clk 0:00:15]}  Rb8 {[%clk 0:00:11]} 32. Kc1 {[%clk 0:00:13]}  Nd7 {[%clk 0:00:08]} 33. Bc3 {[%clk 0:00:13]}  Nf8 {[%clk 0:00:08]} 34. Bxa5+ {[%clk 0:00:12]}  Kc8 {[%clk 0:00:09]} 35. h5 {[%clk 0:00:12]}  Ra8 {[%clk 0:00:07]} 36. Bb4 {[%clk 0:00:11]}  Kc7 {[%clk 0:00:06]} 37. hxg6 {[%clk 0:00:10]}  hxg6 {[%clk 0:00:07]} 38. Rh8 {[%clk 0:00:08]}  Rb8 {[%clk 0:00:04]} 39. Rg8 {[%clk 0:00:08]}  Kb6 {[%clk 0:00:03]} 40. Bc3 {[%clk 0:00:07]}  Kc7 {[%clk 0:00:03]} 41. Bg7 {[%clk 0:00:06]}  Nd7 {[%clk 0:00:03]} 42. Rxb8 {[%clk 0:00:04]}  Nxb8 {[%clk 0:00:04]} 43. Bd4 {[%clk 0:00:02]}  Nd7 {[%clk 0:00:03]} 44. Kd2 {[%clk 0:00:02]}  Bd8 {[%clk 0:00:03]} 0-1


[Site "https://www.chess.com"]